{"text_format":"1","workbook":"xlsx","n_sheets":3,"sheets":["Sheet1","Sheet2","Sheet3"],"not_rendered":{"charts":0,"images":0,"macros":1,"external_links":0,"defined_names":0,"comments":0,"pivot_tables":0},"unopened":[],"bounds":{"document_bytes":16777216,"sheet_cells":100000,"rows_first":2000,"rows_last":500,"rows_between":2000,"halvings":0,"cell_chars":16384,"cell_head_chars":4096},"cells_cut":0,"cells_raw":0,"read":"whole","date_system":"1900"}

{"sheet":"Sheet1","index":0,"n_rows":14,"n_cols":7,"rows_kept":14,"cut":false,"hidden":false,"merged":[]}
["name","result","Grade","By_Letters"]
["A1",152.5,{"$f":"RANK(B2,$B$2:$B$14)","v":5},{"$f":"IF(COUNTIF($B$2:B2,B2)=1,Salim_Order(C2),Salim_Order(C2)&\" Diplicate\")","v":"الخامس"},null,null," =Salim_Order(C2)"]
["A2",150,{"$f":"RANK(B3,$B$2:$B$14)","v":6},{"$f":"IF(COUNTIF($B$2:B3,B3)=1,Salim_Order(C3),Salim_Order(C3)&\" diplicate\")","v":"السّادس"}]
["A3",174,3,{"$f":"IF(COUNTIF($B$2:B4,B4)=1,Salim_Order(C4),Salim_Order(C4)&\" diplicate\")","v":"الثّالث"},null,null,"Formula"]
["A4",174.5,2,{"$f":"IF(COUNTIF($B$2:B5,B5)=1,Salim_Order(C5),Salim_Order(C5)&\" diplicate\")","v":"الثّاني"}]
["A5",120,11,{"$f":"IF(COUNTIF($B$2:B6,B6)=1,Salim_Order(C6),Salim_Order(C6)&\" diplicate\")","v":"الحادي عشر"}]
["A6",111,12,{"$f":"IF(COUNTIF($B$2:B7,B7)=1,Salim_Order(C7),Salim_Order(C7)&\" diplicate\")","v":"الثّاني عشر"}]
["A7",101,13,{"$f":"IF(COUNTIF($B$2:B8,B8)=1,Salim_Order(C8),Salim_Order(C8)&\" diplicate\")","v":"الثّالث عشر"}]
["A8",150,6,{"$f":"IF(COUNTIF($B$2:B9,B9)=1,Salim_Order(C9),Salim_Order(C9)&\" diplicate\")","v":"السّادس diplicate"}]
["A9",145,10,{"$f":"IF(COUNTIF($B$2:B10,B10)=1,Salim_Order(C10),Salim_Order(C10)&\" diplicate\")","v":"العاشر"}]
["A10",174,3,{"$f":"IF(COUNTIF($B$2:B11,B11)=1,Salim_Order(C11),Salim_Order(C11)&\" diplicate\")","v":"الثّالث diplicate"}]
["A11",178,1,{"$f":"IF(COUNTIF($B$2:B12,B12)=1,Salim_Order(C12),Salim_Order(C12)&\" diplicate\")","v":"الأوّل"}]
["A12",147,9,{"$f":"IF(COUNTIF($B$2:B13,B13)=1,Salim_Order(C13),Salim_Order(C13)&\" diplicate\")","v":"التّاسع"}]
["A13",148,8,{"$f":"IF(COUNTIF($B$2:B14,B14)=1,Salim_Order(C14),Salim_Order(C14)&\" diplicate\")","v":"الثّامن"}]

{"sheet":"Sheet2","index":1,"n_rows":0,"n_cols":0,"rows_kept":0,"cut":false,"hidden":false,"merged":[]}

{"sheet":"Sheet3","index":2,"n_rows":0,"n_cols":0,"rows_kept":0,"cut":false,"hidden":false,"merged":[]}